[Event "Early-Titled-Tuesday-Blitz-September-26-2023"]
[Site "Chess.com"]
[Date "2023.09.26"]
[Round "6"]
[White "Boxerandchessplayer"]
[Black "Likvidator228"]
[Result "1/2-1/2"]
[WhiteElo "2189"]
[BlackElo "2531"]
[TimeControl "180+1"]
[EndTime "9:08:47 PDT"]
[Termination "Game drawn by repetition"]

1. d4 {[%clk 0:03:00.9]} 1... f5 {[%clk 0:02:59.7]} 2. c4 {[%clk 0:02:59.3]}
2... Nf6 {[%clk 0:02:59.9]} 3. g3 {[%clk 0:02:57.6]} 3... g6 {[%clk 0:02:59.9]}
4. Bg2 {[%clk 0:02:58.2]} 4... Bg7 {[%clk 0:03:00.1]} 5. Nh3 {[%clk 0:02:59]}
5... d6 {[%clk 0:02:59.3]} 6. O-O {[%clk 0:02:58]} 6... O-O {[%clk 0:02:59.6]}
7. Nc3 {[%clk 0:02:57.4]} 7... e5 {[%clk 0:02:58.8]} 8. dxe5 {[%clk 0:02:55.9]}
8... dxe5 {[%clk 0:02:58.8]} 9. Qxd8 {[%clk 0:02:56.6]} 9... Rxd8 {[%clk
0:02:58.5]} 10. e4 {[%clk 0:02:50.6]} 10... c6 {[%clk 0:02:56.5]} 11. Bg5 {[%clk
0:02:41.4]} 11... h6 {[%clk 0:02:56.3]} 12. Bxf6 {[%clk 0:02:41.5]} 12... Bxf6
{[%clk 0:02:57]} 13. Rfd1 {[%clk 0:02:41.3]} 13... Re8 {[%clk 0:02:56.9]} 14.
Re1 {[%clk 0:02:31.5]} 14... Na6 {[%clk 0:02:55.8]} 15. Rad1 {[%clk 0:02:29]}
15... Be6 {[%clk 0:02:52.8]} 16. b3 {[%clk 0:02:27.8]} 16... Rad8 {[%clk
0:02:48.2]} 17. f3 {[%clk 0:02:23.1]} 17... Nc5 {[%clk 0:02:38]} 18. Nf2 {[%clk
0:02:20.4]} 18... a5 {[%clk 0:02:32.5]} 19. Rxd8 {[%clk 0:02:12]} 19... Rxd8
{[%clk 0:02:32.2]} 20. Rd1 {[%clk 0:02:12.5]} 20... Rxd1+ {[%clk 0:02:28.5]} 21.
Ncxd1 {[%clk 0:02:12.4]} 21... a4 {[%clk 0:02:24.6]} 22. b4 {[%clk 0:01:51.3]}
22... Na6 {[%clk 0:02:24.6]} 23. b5 {[%clk 0:01:49.8]} 23... Nb4 {[%clk
0:02:20.8]} 24. bxc6 {[%clk 0:01:27.9]} 24... bxc6 {[%clk 0:02:20.8]} 25. a3
{[%clk 0:01:18.2]} 25... Nc2 {[%clk 0:02:18.8]} 26. Nc3 {[%clk 0:01:18.6]} 26...
Nxa3 {[%clk 0:02:17.4]} 27. Nxa4 {[%clk 0:01:19.2]} 27... Nxc4 {[%clk
0:02:14.1]} 28. Nc5 {[%clk 0:01:18.2]} 28... Bf7 {[%clk 0:02:02.5]} 29. f4
{[%clk 0:01:17.4]} 29... exf4 {[%clk 0:01:57.9]} 30. gxf4 {[%clk 0:01:16.1]}
30... fxe4 {[%clk 0:01:53]} 31. Nfxe4 {[%clk 0:01:13.4]} 31... Bd4+ {[%clk
0:01:51.9]} 32. Kh1 {[%clk 0:01:09.9]} 32... Kg7 {[%clk 0:01:38.8]} 33. Bh3
{[%clk 0:00:44.5]} 33... Bxc5 {[%clk 0:01:14.2]} 34. Nxc5 {[%clk 0:00:43.8]}
34... Bd5+ {[%clk 0:01:14.8]} 35. Kg1 {[%clk 0:00:40.4]} 35... Kf6 {[%clk
0:01:10.4]} 36. Kf2 {[%clk 0:00:39.2]} 36... Nd6 {[%clk 0:01:10.3]} 37. Nd7+
{[%clk 0:00:36.2]} 37... Kg7 {[%clk 0:01:05.3]} 38. Ke3 {[%clk 0:00:31.6]} 38...
Nf5+ {[%clk 0:00:55.9]} 39. Bxf5 {[%clk 0:00:31.3]} 39... gxf5 {[%clk
0:00:56.8]} 40. Ne5 {[%clk 0:00:27.7]} 40... Kf6 {[%clk 0:00:48.8]} 41. Kd4
{[%clk 0:00:25.7]} 41... Ke6 {[%clk 0:00:48.8]} 42. Kc5 {[%clk 0:00:25.7]} 42...
Be4 {[%clk 0:00:47.8]} 43. h4 {[%clk 0:00:16.3]} 43... Kf6 {[%clk 0:00:45.6]}
44. Kd6 {[%clk 0:00:13.7]} 44... Bg2 {[%clk 0:00:41.8]} 45. Kc5 {[%clk
0:00:10.7]} 45... Bh1 {[%clk 0:00:40]} 46. Kd6 {[%clk 0:00:09.5]} 46... Bg2
{[%clk 0:00:39]} 47. Kc5 {[%clk 0:00:09.3]} 47... Ke6 {[%clk 0:00:39.6]} 48.
Nxc6 {[%clk 0:00:05.5]} 48... Be4 {[%clk 0:00:33.8]} 49. Ne5 {[%clk 0:00:05.2]}
49... Bg2 {[%clk 0:00:33.2]} 50. Kd4 {[%clk 0:00:04.6]} 50... Be4 {[%clk
0:00:33]} 51. Kc5 {[%clk 0:00:04.9]} 51... Bg2 {[%clk 0:00:33]} 52. Kd4 {[%clk
0:00:05.2]} 52... Be4 {[%clk 0:00:33.4]} 53. Kc5 {[%clk 0:00:05.5]} 1/2-1/2

[Event "Early-Titled-Tuesday-Blitz-September-26-2023"]
[Site "Chess.com"]
[Date "2023.09.26"]
[Round "6"]
[White "LUISMIGUELOV"]
[Black "Tssunami"]
[Result "0-1"]
[WhiteElo "2144"]
[BlackElo "2404"]
[TimeControl "180+1"]
[EndTime "9:08:54 PDT"]
[Termination "Tssunami won on time"]

1. d4 {[%clk 0:03:00.9]} 1... Nf6 {[%clk 0:02:55.4]} 2. c3 {[%clk 0:03:01.4]}
2... e6 {[%clk 0:02:55.9]} 3. Bg5 {[%clk 0:03:01.2]} 3... Be7 {[%clk 0:02:54.7]}
4. Nd2 {[%clk 0:03:00.3]} 4... b5 {[%clk 0:02:54.4]} 5. e4 {[%clk 0:02:53.3]}
5... a6 {[%clk 0:02:54]} 6. e5 {[%clk 0:02:47.8]} 6... Nd5 {[%clk 0:02:53.3]} 7.
Bxe7 {[%clk 0:02:47.1]} 7... Qxe7 {[%clk 0:02:53.1]} 8. Bd3 {[%clk 0:02:44.8]}
8... Bb7 {[%clk 0:02:52.1]} 9. Ne4 {[%clk 0:02:31.7]} 9... Nf4 {[%clk
0:02:49.8]} 10. Qf3 {[%clk 0:02:20.5]} 10... Nxd3+ {[%clk 0:02:41.8]} 11. Qxd3
{[%clk 0:02:19.9]} 11... f5 {[%clk 0:02:34.8]} 12. exf6 {[%clk 0:02:18.2]} 12...
gxf6 {[%clk 0:02:34.5]} 13. f3 {[%clk 0:02:11.9]} 13... Rg8 {[%clk 0:02:29.1]}
14. g3 {[%clk 0:02:01]} 14... d6 {[%clk 0:02:25.2]} 15. Ne2 {[%clk 0:01:58.4]}
15... f5 {[%clk 0:02:24.3]} 16. Nd2 {[%clk 0:01:51.8]} 16... Nd7 {[%clk
0:02:22.5]} 17. O-O-O {[%clk 0:01:50.3]} 17... O-O-O {[%clk 0:02:21]} 18. a3
{[%clk 0:01:47.6]} 18... Nb6 {[%clk 0:02:15.8]} 19. Rhf1 {[%clk 0:01:37.5]}
19... Kb8 {[%clk 0:02:15.5]} 20. f4 {[%clk 0:01:29.5]} 20... h5 {[%clk 0:02:13]}
21. Nf3 {[%clk 0:01:27.9]} 21... Be4 {[%clk 0:02:08.4]} 22. Qe3 {[%clk
0:01:11.2]} 22... Nc4 {[%clk 0:02:06.8]} 23. Qf2 {[%clk 0:01:10.9]} 23... Qd7
{[%clk 0:01:59.5]} 24. Nd2 {[%clk 0:01:09]} 24... Qc6 {[%clk 0:01:57.1]} 25.
Nxe4 {[%clk 0:01:01.7]} 25... fxe4 {[%clk 0:01:56.8]} 26. Kc2 {[%clk 0:00:50.4]}
26... d5 {[%clk 0:01:55.1]} 27. Nc1 {[%clk 0:00:49.1]} 27... Na5 {[%clk
0:01:39.9]} 28. Nb3 {[%clk 0:00:36.9]} 28... Nxb3 {[%clk 0:01:33]} 29. Kxb3
{[%clk 0:00:37.1]} 29... h4 {[%clk 0:01:29.4]} 30. Kc2 {[%clk 0:00:34.7]} 30...
hxg3 {[%clk 0:01:28.2]} 31. hxg3 {[%clk 0:00:34.7]} 31... Rh8 {[%clk 0:01:27.3]}
32. Rg1 {[%clk 0:00:34]} 32... a5 {[%clk 0:01:24.5]} 33. Qe2 {[%clk 0:00:33.3]}
33... Rh3 {[%clk 0:01:22.3]} 34. Rg2 {[%clk 0:00:28.6]} 34... Rdh8 {[%clk
0:01:20.9]} 35. Ra1 {[%clk 0:00:26.4]} 35... Kb7 {[%clk 0:01:17.1]} 36. Rf1
{[%clk 0:00:23.1]} 36... Rg8 {[%clk 0:01:09.3]} 37. Rfg1 {[%clk 0:00:22.1]}
37... Qb6 {[%clk 0:01:08.2]} 38. Qe3 {[%clk 0:00:20.5]} 38... b4 {[%clk
0:01:07.1]} 39. axb4 {[%clk 0:00:19.5]} 39... axb4 {[%clk 0:01:07.3]} 40. cxb4
{[%clk 0:00:19.1]} 40... Qxb4 {[%clk 0:01:04.4]} 41. Qb3 {[%clk 0:00:18.9]}
41... Qxb3+ {[%clk 0:01:01.5]} 42. Kxb3 {[%clk 0:00:19]} 42... Kc6 {[%clk
0:01:00.8]} 43. Kc3 {[%clk 0:00:18.3]} 43... Kd6 {[%clk 0:01:01.2]} 44. b4
{[%clk 0:00:17.5]} 44... Rf8 {[%clk 0:00:58.9]} 45. Rf1 {[%clk 0:00:14]} 45...
Ra8 {[%clk 0:00:58.5]} 46. Rb1 {[%clk 0:00:12.2]} 46... Ra3+ {[%clk 0:00:56.7]}
47. Rb3 {[%clk 0:00:11.9]} 47... Ra1 {[%clk 0:00:56.8]} 48. Rbb2 {[%clk
0:00:11]} 48... Re1 {[%clk 0:00:51.8]} 49. b5 {[%clk 0:00:10.6]} 49... Re3+
{[%clk 0:00:51.5]} 50. Kb4 {[%clk 0:00:10.4]} 50... Rhxg3 {[%clk 0:00:51.2]} 51.
Rxg3 {[%clk 0:00:10.3]} 51... Rxg3 {[%clk 0:00:52.1]} 52. Rf2 {[%clk 0:00:08.8]}
52... Rd3 {[%clk 0:00:48.8]} 53. f5 {[%clk 0:00:06.9]} 53... Rxd4+ {[%clk
0:00:48.8]} 54. Ka5 {[%clk 0:00:06.8]} 54... exf5 {[%clk 0:00:48.6]} 55. Rxf5
{[%clk 0:00:06.3]} 55... e3 {[%clk 0:00:49]} 56. Rf6+ {[%clk 0:00:06.2]} 56...
Kd7 {[%clk 0:00:47.4]} 57. Rf3 {[%clk 0:00:04.1]} 57... Re4 {[%clk 0:00:47.2]}
58. Rf1 {[%clk 0:00:04]} 58... e2 {[%clk 0:00:47.7]} 59. Re1 {[%clk 0:00:04.1]}
59... Kd6 {[%clk 0:00:48.3]} 60. b6 {[%clk 0:00:02.3]} 60... cxb6+ {[%clk
0:00:49.2]} 61. Kxb6 {[%clk 0:00:02.6]} 61... d4 {[%clk 0:00:49.9]} 62. Kb5
{[%clk 0:00:03.1]} 62... d3 {[%clk 0:00:50.3]} 0-1

[Event "Early-Titled-Tuesday-Blitz-September-26-2023"]
[Site "Chess.com"]
[Date "2023.09.26"]
[Round "6"]
[White "Jaka_Brilej"]
[Black "IngOscarArdila"]
[Result "1/2-1/2"]
[WhiteElo "2503"]
[BlackElo "2391"]
[TimeControl "180+1"]
[EndTime "9:08:55 PDT"]
[Termination "Game drawn by repetition"]

1. e4 {[%clk 0:03:00.9]} 1... e5 {[%clk 0:03:00]} 2. Nf3 {[%clk 0:03:00.3]} 2...
Nf6 {[%clk 0:03:00.4]} 3. Bc4 {[%clk 0:03:00.8]} 3... Nxe4 {[%clk 0:02:59.8]} 4.
Nc3 {[%clk 0:02:57]} 4... Nf6 {[%clk 0:02:59.8]} 5. Nxe5 {[%clk 0:02:55.5]} 5...
d5 {[%clk 0:02:59.7]} 6. Bb3 {[%clk 0:02:50.2]} 6... Be7 {[%clk 0:02:59.7]} 7.
d4 {[%clk 0:02:49.9]} 7... O-O {[%clk 0:02:59.8]} 8. O-O {[%clk 0:02:50.5]} 8...
Bf5 {[%clk 0:02:58.9]} 9. Qf3 {[%clk 0:02:47]} 9... Be4 {[%clk 0:02:59.1]} 10.
Nxe4 {[%clk 0:02:45.2]} 10... dxe4 {[%clk 0:02:59.6]} 11. Qe3 {[%clk 0:02:41.2]}
11... Nbd7 {[%clk 0:02:55.9]} 12. h3 {[%clk 0:02:35.1]} 12... c5 {[%clk
0:02:55.9]} 13. Nxd7 {[%clk 0:02:32]} 13... Qxd7 {[%clk 0:02:51.1]} 14. dxc5
{[%clk 0:02:31.2]} 14... Qc6 {[%clk 0:02:44.5]} 15. Qe2 {[%clk 0:02:27.3]} 15...
Bxc5 {[%clk 0:02:42.6]} 16. Bg5 {[%clk 0:02:28]} 16... Rfe8 {[%clk 0:02:39]} 17.
Rad1 {[%clk 0:02:24.9]} 17... Rad8 {[%clk 0:02:35.8]} 18. Rxd8 {[%clk
0:02:13.5]} 18... Rxd8 {[%clk 0:02:34.9]} 19. Bxf6 {[%clk 0:02:14.2]} 19... Qxf6
{[%clk 0:01:54.7]} 20. Qxe4 {[%clk 0:02:12.4]} 20... Qxb2 {[%clk 0:01:54.6]} 21.
Qxb7 {[%clk 0:02:09.4]} 21... Qf6 {[%clk 0:01:52.8]} 22. Qe4 {[%clk 0:01:58.8]}
22... g6 {[%clk 0:01:50.1]} 23. Bd5 {[%clk 0:01:38.3]} 23... Kg7 {[%clk
0:01:40.8]} 24. c4 {[%clk 0:01:38.2]} 24... h5 {[%clk 0:01:35.9]} 25. h4 {[%clk
0:01:31.6]} 25... Rd7 {[%clk 0:01:28.2]} 26. g3 {[%clk 0:01:24.3]} 26... Re7
{[%clk 0:01:27.4]} 27. Qd3 {[%clk 0:01:24]} 27... Qe5 {[%clk 0:01:20.8]} 28. Kg2
{[%clk 0:01:23.7]} 28... Qf6 {[%clk 0:01:19.2]} 29. Qf3 {[%clk 0:01:17.9]} 29...
Qe5 {[%clk 0:00:55.8]} 30. a4 {[%clk 0:00:50.3]} 30... f5 {[%clk 0:00:55.4]} 31.
Rb1 {[%clk 0:00:42.4]} 31... f4 {[%clk 0:00:52.6]} 32. gxf4 {[%clk 0:00:39.3]}
32... Qf6 {[%clk 0:00:50.3]} 33. Rb8 {[%clk 0:00:35.9]} 33... Qxh4 {[%clk
0:00:45.9]} 34. Qc3+ {[%clk 0:00:35.7]} 34... Kh6 {[%clk 0:00:26.8]} 35. Rh8+
{[%clk 0:00:13.6]} 35... Rh7 {[%clk 0:00:26.8]} 36. Rxh7+ {[%clk 0:00:14.3]}
36... Kxh7 {[%clk 0:00:26.9]} 37. Qb3 {[%clk 0:00:10.2]} 37... Qxf2+ {[%clk
0:00:26.1]} 38. Kh3 {[%clk 0:00:10.1]} 38... Kh6 {[%clk 0:00:20]} 39. Qb8 {[%clk
0:00:08.3]} 39... Qe3+ {[%clk 0:00:15.7]} 40. Kg2 {[%clk 0:00:08.1]} 40... Qf2+
{[%clk 0:00:15.5]} 41. Kh3 {[%clk 0:00:08.5]} 41... Qe3+ {[%clk 0:00:14.1]} 42.
Kg2 {[%clk 0:00:08.7]} 42... Qg1+ {[%clk 0:00:11.3]} 43. Kh3 {[%clk 0:00:02.7]}
43... Qg4+ {[%clk 0:00:10]} 44. Kh2 {[%clk 0:00:02.8]} 44... Qg1+ {[%clk
0:00:08]} 45. Kh3 {[%clk 0:00:03.3]} 45... Qg4+ {[%clk 0:00:06.3]} 46. Kh2
{[%clk 0:00:03.7]} 46... Qg1+ {[%clk 0:00:04.1]} 47. Kh3 {[%clk 0:00:04.2]}
1/2-1/2

[Event "Early-Titled-Tuesday-Blitz-September-26-2023"]
[Site "Chess.com"]
[Date "2023.09.26"]
[Round "6"]
[White "PawnEatingZombie"]
[Black "Gyulamiryan-koryun"]
[Result "0-1"]
[WhiteElo "2146"]
[BlackElo "1993"]
[TimeControl "180+1"]
[EndTime "9:08:56 PDT"]
[Termination "Gyulamiryan-koryun won on time"]

1. e4 {[%clk 0:03:00.9]} 1... e5 {[%clk 0:02:59.2]} 2. Nf3 {[%clk 0:02:58.7]}
2... Nc6 {[%clk 0:02:59.1]} 3. d4 {[%clk 0:02:59.1]} 3... exd4 {[%clk
0:02:58.8]} 4. Nxd4 {[%clk 0:02:59.2]} 4... Bc5 {[%clk 0:02:58.8]} 5. Nb3 {[%clk
0:02:58.7]} 5... Bb6 {[%clk 0:02:58]} 6. Nc3 {[%clk 0:02:58.3]} 6... Nge7 {[%clk
0:02:56.8]} 7. Qe2 {[%clk 0:02:57.6]} 7... O-O {[%clk 0:02:56.3]} 8. Be3 {[%clk
0:02:52.3]} 8... d6 {[%clk 0:02:56]} 9. O-O-O {[%clk 0:02:51.4]} 9... Bxe3+
{[%clk 0:02:47.8]} 10. Qxe3 {[%clk 0:02:50.3]} 10... Ng6 {[%clk 0:02:42.1]} 11.
f4 {[%clk 0:02:40.5]} 11... f5 {[%clk 0:02:35.2]} 12. e5 {[%clk 0:02:38.1]}
12... Re8 {[%clk 0:02:30.9]} 13. Bc4+ {[%clk 0:02:35.9]} 13... Kh8 {[%clk
0:02:28.5]} 14. Bf7 {[%clk 0:02:14.4]} 14... Re7 {[%clk 0:02:23.3]} 15. Bxg6
{[%clk 0:02:07.3]} 15... hxg6 {[%clk 0:02:23.4]} 16. Qh3+ {[%clk 0:02:07.2]}
16... Kg8 {[%clk 0:02:23.1]} 17. exd6 {[%clk 0:02:07.2]} 17... cxd6 {[%clk
0:02:22.1]} 18. Rd2 {[%clk 0:01:54]} 18... Qc7 {[%clk 0:02:09.2]} 19. Rhd1
{[%clk 0:01:51.5]} 19... Rd7 {[%clk 0:01:53.1]} 20. Nd5 {[%clk 0:01:50.5]} 20...
Qd8 {[%clk 0:01:52.2]} 21. Qg3 {[%clk 0:01:37.5]} 21... Kf7 {[%clk 0:01:45]} 22.
h4 {[%clk 0:01:30.9]} 22... Ne7 {[%clk 0:01:43.2]} 23. Nxe7 {[%clk 0:01:05.9]}
23... Qxe7 {[%clk 0:01:42.2]} 24. Nd4 {[%clk 0:00:56.3]} 24... a6 {[%clk
0:01:18.5]} 25. Nf3 {[%clk 0:00:55.9]} 25... b5 {[%clk 0:01:11.6]} 26. Ng5+
{[%clk 0:00:55.9]} 26... Kg8 {[%clk 0:01:10.8]} 27. Qf3 {[%clk 0:00:55.9]} 27...
Bb7 {[%clk 0:01:09.7]} 28. Qb3+ {[%clk 0:00:55.2]} 28... d5 {[%clk 0:01:07.5]}
29. Qh3 {[%clk 0:00:43.4]} 29... Rad8 {[%clk 0:00:59.2]} 30. h5 {[%clk
0:00:43.2]} 30... Qf6 {[%clk 0:00:57.1]} 31. Rh1 {[%clk 0:00:29.7]} 31... gxh5
{[%clk 0:00:45.2]} 32. Qxh5 {[%clk 0:00:29.1]} 32... Qh6 {[%clk 0:00:38]} 33.
Qd1 {[%clk 0:00:24]} 33... Qf6 {[%clk 0:00:30.4]} 34. Rh4 {[%clk 0:00:16.5]}
34... d4 {[%clk 0:00:28.5]} 35. Qh1 {[%clk 0:00:16.5]} 35... Kf8 {[%clk
0:00:25.5]} 36. Nh7+ {[%clk 0:00:15.7]} 36... Kf7 {[%clk 0:00:24.1]} 37. Nxf6
{[%clk 0:00:16.6]} 37... Kxf6 {[%clk 0:00:23.6]} 38. Rh6+ {[%clk 0:00:14.7]}
38... gxh6 {[%clk 0:00:20.8]} 39. Qxh6+ {[%clk 0:00:14.6]} 39... Ke7 {[%clk
0:00:19.3]} 40. Qg5+ {[%clk 0:00:12.5]} 40... Kd6 {[%clk 0:00:15.9]} 41. Qxf5
{[%clk 0:00:10]} 41... Kc6 {[%clk 0:00:15.7]} 42. g4 {[%clk 0:00:08.3]} 42...
Rd5 {[%clk 0:00:13.1]} 43. Qg6+ {[%clk 0:00:06]} 43... R8d6 {[%clk 0:00:13.2]}
44. Qe8+ {[%clk 0:00:05.7]} 44... Kb6 {[%clk 0:00:11.9]} 45. g5 {[%clk
0:00:05.5]} 45... Bc8 {[%clk 0:00:11.9]} 46. g6 {[%clk 0:00:03.1]} 46... Be6
{[%clk 0:00:10.8]} 47. g7 {[%clk 0:00:02]} 47... Rc6 {[%clk 0:00:09.8]} 0-1

[Event "Early-Titled-Tuesday-Blitz-September-26-2023"]
[Site "Chess.com"]
[Date "2023.09.26"]
[Round "6"]
[White "NowInChess"]
[Black "Mystery2007"]
[Result "1/2-1/2"]
[WhiteElo "2267"]
[BlackElo "2481"]
[TimeControl "180+1"]
[EndTime "9:08:59 PDT"]
[Termination "Game drawn by repetition"]

1. e4 {[%clk 0:03:00.9]} 1... a6 {[%clk 0:02:59.2]} 2. d4 {[%clk 0:02:57.5]}
2... e6 {[%clk 0:02:59.6]} 3. Bd3 {[%clk 0:02:54.9]} 3... d5 {[%clk 0:02:59.4]}
4. Nc3 {[%clk 0:02:52.6]} 4... Nf6 {[%clk 0:02:45.1]} 5. e5 {[%clk 0:02:49.6]}
5... Nfd7 {[%clk 0:02:45.1]} 6. Nce2 {[%clk 0:02:48]} 6... c5 {[%clk 0:02:45.6]}
7. c3 {[%clk 0:02:47.5]} 7... Nc6 {[%clk 0:02:46.2]} 8. f4 {[%clk 0:02:42.6]}
8... Qb6 {[%clk 0:02:40.7]} 9. Nf3 {[%clk 0:02:40.9]} 9... cxd4 {[%clk
0:02:40.8]} 10. cxd4 {[%clk 0:02:34]} 10... a5 {[%clk 0:02:29.1]} 11. O-O {[%clk
0:02:25.7]} 11... a4 {[%clk 0:02:27.8]} 12. Kh1 {[%clk 0:02:22.7]} 12... g6
{[%clk 0:02:25.1]} 13. Rb1 {[%clk 0:02:07.3]} 13... Be7 {[%clk 0:02:24.2]} 14.
Be3 {[%clk 0:01:55.9]} 14... Nb4 {[%clk 0:02:23.7]} 15. a3 {[%clk 0:01:56.3]}
15... Nxd3 {[%clk 0:02:23.5]} 16. Qxd3 {[%clk 0:01:57.2]} 16... Qa6 {[%clk
0:02:10.6]} 17. Qxa6 {[%clk 0:01:44.7]} 17... Rxa6 {[%clk 0:02:11.5]} 18. Rfc1
{[%clk 0:01:43]} 18... Nb6 {[%clk 0:02:08.3]} 19. Rc3 {[%clk 0:01:33.1]} 19...
Bd7 {[%clk 0:02:02.4]} 20. Rbc1 {[%clk 0:01:25.6]} 20... Nc4 {[%clk 0:02:01.5]}
21. R1c2 {[%clk 0:01:24.1]} 21... O-O {[%clk 0:01:46.5]} 22. Bc1 {[%clk
0:01:23.2]} 22... Bb5 {[%clk 0:01:42.8]} 23. g4 {[%clk 0:01:16.2]} 23... Bd8
{[%clk 0:01:41.4]} 24. Nfg1 {[%clk 0:00:53]} 24... Ba5 {[%clk 0:01:41.7]} 25.
Rf3 {[%clk 0:00:47.7]} 25... Rc6 {[%clk 0:01:37.1]} 26. f5 {[%clk 0:00:47.2]}
26... Rfc8 {[%clk 0:01:26.1]} 27. Nf4 {[%clk 0:00:41.3]} 27... Nd2 {[%clk
0:01:12.1]} 28. Rxc6 {[%clk 0:00:38.5]} 28... Rxc6 {[%clk 0:01:09.7]} 29. Bxd2
{[%clk 0:00:32.3]} 29... Bxd2 {[%clk 0:01:10.6]} 30. fxe6 {[%clk 0:00:30.5]}
30... fxe6 {[%clk 0:01:09]} 31. Nd3 {[%clk 0:00:26.2]} 31... b6 {[%clk
0:00:53.8]} 32. Nh3 {[%clk 0:00:22]} 32... Kg7 {[%clk 0:00:45.9]} 33. Nb4 {[%clk
0:00:11.9]} 33... Rc1+ {[%clk 0:00:44.2]} 34. Kg2 {[%clk 0:00:11]} 34... Rb1
{[%clk 0:00:27.7]} 35. Nd3 {[%clk 0:00:09.6]} 35... Bxd3 {[%clk 0:00:23.5]} 36.
Rxd3 {[%clk 0:00:10.5]} 36... Rxb2 {[%clk 0:00:23.8]} 37. Kf3 {[%clk 0:00:08.9]}
37... Rb3 {[%clk 0:00:20.5]} 38. Ke2 {[%clk 0:00:09]} 38... Rxd3 {[%clk
0:00:19.3]} 39. Kxd3 {[%clk 0:00:09.9]} 39... Bc1 {[%clk 0:00:19.9]} 40. Kc2
{[%clk 0:00:08.8]} 40... Bxa3 {[%clk 0:00:20.3]} 41. Ng5 {[%clk 0:00:08.4]}
41... Be7 {[%clk 0:00:17]} 42. Nxe6+ {[%clk 0:00:08.6]} 42... Kf7 {[%clk
0:00:16.6]} 43. Nc7 {[%clk 0:00:08.1]} 43... h5 {[%clk 0:00:15.1]} 44. gxh5
{[%clk 0:00:07.4]} 44... gxh5 {[%clk 0:00:15.2]} 45. Nxd5 {[%clk 0:00:08.3]}
45... b5 {[%clk 0:00:14.5]} 46. Nxe7 {[%clk 0:00:07.5]} 46... Kxe7 {[%clk
0:00:14.7]} 47. Kc3 {[%clk 0:00:06]} 47... Ke6 {[%clk 0:00:14.5]} 48. Kb4 {[%clk
0:00:05.8]} 48... Kd5 {[%clk 0:00:14.5]} 49. h4 {[%clk 0:00:06]} 49... Ke6
{[%clk 0:00:14.6]} 50. Ka3 {[%clk 0:00:06]} 50... Kd5 {[%clk 0:00:14.2]} 51. Kb4
{[%clk 0:00:06.5]} 51... Ke6 {[%clk 0:00:12.8]} 52. Ka3 {[%clk 0:00:07]} 52...
Kd5 {[%clk 0:00:12.6]} 53. Kb4 {[%clk 0:00:07.6]} 1/2-1/2

[Event "Early-Titled-Tuesday-Blitz-September-26-2023"]
[Site "Chess.com"]
[Date "2023.09.26"]
[Round "6"]
[White "Flaccidmoves"]
[Black "marcodobrikov"]
[Result "0-1"]
[WhiteElo "2454"]
[BlackElo "2644"]
[TimeControl "180+1"]
[EndTime "9:09:00 PDT"]
[Termination "marcodobrikov won by resignation"]

1. d4 {[%clk 0:03:00.9]} 1... Nf6 {[%clk 0:02:59.3]} 2. c4 {[%clk 0:03:00.9]}
2... e6 {[%clk 0:02:59.4]} 3. Nc3 {[%clk 0:03:01.3]} 3... d5 {[%clk 0:03:00]} 4.
cxd5 {[%clk 0:02:59.8]} 4... exd5 {[%clk 0:03:00.9]} 5. Bg5 {[%clk 0:03:00.1]}
5... Be7 {[%clk 0:03:01.5]} 6. e3 {[%clk 0:03:00.1]} 6... O-O {[%clk 0:03:00]}
7. Bd3 {[%clk 0:02:59.8]} 7... c6 {[%clk 0:03:00.9]} 8. Qc2 {[%clk 0:02:58]}
8... Nbd7 {[%clk 0:03:01.5]} 9. Nge2 {[%clk 0:02:56.6]} 9... Re8 {[%clk
0:03:02.4]} 10. O-O {[%clk 0:02:48.8]} 10... Nf8 {[%clk 0:03:02.6]} 11. Rae1
{[%clk 0:02:23.4]} 11... Ng6 {[%clk 0:03:00.7]} 12. f3 {[%clk 0:02:11.8]} 12...
h6 {[%clk 0:02:52.2]} 13. Bxf6 {[%clk 0:02:07.8]} 13... Bxf6 {[%clk 0:02:53.1]}
14. Ng3 {[%clk 0:01:49.5]} 14... Rxe3 {[%clk 0:02:43.9]} 15. Rxe3 {[%clk
0:01:43.3]} 15... Bxd4 {[%clk 0:02:39.7]} 16. Nd1 {[%clk 0:01:04.4]} 16... Nf4
{[%clk 0:02:19.9]} 17. Bf5 {[%clk 0:00:58.2]} 17... Qb6 {[%clk 0:02:09.8]} 18.
Re1 {[%clk 0:00:52.6]} 18... Bxe3+ {[%clk 0:01:59.1]} 19. Nxe3 {[%clk
0:00:45.5]} 19... g6 {[%clk 0:01:28.4]} 20. Bxc8 {[%clk 0:00:38.8]} 20... Rxc8
{[%clk 0:01:29.3]} 21. Kh1 {[%clk 0:00:39.2]} 21... Re8 {[%clk 0:01:27.9]} 22.
Qd2 {[%clk 0:00:36.6]} 22... Re6 {[%clk 0:01:07.3]} 23. Ng4 {[%clk 0:00:34.6]}
23... Rxe1+ {[%clk 0:00:56.5]} 24. Qxe1 {[%clk 0:00:34.5]} 24... Qxb2 {[%clk
0:00:57.4]} 25. Qe8+ {[%clk 0:00:16.9]} 25... Kg7 {[%clk 0:00:57.6]} 26. Qe5+
{[%clk 0:00:17.5]} 26... Qxe5 {[%clk 0:00:57.6]} 27. Nxe5 {[%clk 0:00:18.4]}
27... Kf6 {[%clk 0:00:55.1]} 28. Ng4+ {[%clk 0:00:17.8]} 28... Ke6 {[%clk
0:00:52.8]} 29. Kg1 {[%clk 0:00:17.7]} 29... c5 {[%clk 0:00:53.2]} 30. Kf2
{[%clk 0:00:17.3]} 30... b5 {[%clk 0:00:52.7]} 31. Ne2 {[%clk 0:00:16.3]} 31...
h5 {[%clk 0:00:52.9]} 32. Nxf4+ {[%clk 0:00:16.2]} 32... Kf5 {[%clk 0:00:50.2]}
33. Ne3+ {[%clk 0:00:16.6]} 33... Kxf4 {[%clk 0:00:51.1]} 34. Nxd5+ {[%clk
0:00:17.1]} 34... Ke5 {[%clk 0:00:52]} 35. Ne3 {[%clk 0:00:17.1]} 35... Kd4
{[%clk 0:00:52]} 36. Ke2 {[%clk 0:00:16.9]} 36... Kc3 {[%clk 0:00:51.8]} 37.
Nd5+ {[%clk 0:00:14.7]} 37... Kb2 {[%clk 0:00:52.3]} 38. Nc7 {[%clk 0:00:15.3]}
38... b4 {[%clk 0:00:52.1]} 39. Kd3 {[%clk 0:00:15.8]} 39... Kxa2 {[%clk
0:00:52.1]} 40. Kc4 {[%clk 0:00:13.8]} 40... a5 {[%clk 0:00:46.4]} 41. Na6
{[%clk 0:00:10.9]} 41... b3 {[%clk 0:00:46]} 42. Nxc5 {[%clk 0:00:09.5]} 42...
b2 {[%clk 0:00:44]} 43. Ne4 {[%clk 0:00:09.9]} 43... b1=Q {[%clk 0:00:39.4]} 44.
Nc3+ {[%clk 0:00:09.8]} 44... Kb2 {[%clk 0:00:39.7]} 45. Nxb1 {[%clk 0:00:10.7]}
45... Kxb1 {[%clk 0:00:40.6]} 46. Kb5 {[%clk 0:00:11.4]} 46... Kc2 {[%clk
0:00:41.5]} 47. Kxa5 {[%clk 0:00:11.9]} 47... Kd3 {[%clk 0:00:42.4]} 48. Kb6
{[%clk 0:00:12.3]} 48... Ke3 {[%clk 0:00:43.3]} 49. Kc6 {[%clk 0:00:12.6]} 49...
Kf2 {[%clk 0:00:44.2]} 50. Kd7 {[%clk 0:00:13.3]} 50... Kxg2 {[%clk 0:00:44.9]}
51. Ke7 {[%clk 0:00:13.9]} 51... Kxf3 {[%clk 0:00:42.6]} 52. Kxf7 {[%clk
0:00:13.2]} 52... g5 {[%clk 0:00:43.5]} 53. Kg6 {[%clk 0:00:13.7]} 53... Kg4
{[%clk 0:00:44.4]} 54. Kh6 {[%clk 0:00:07.7]} 54... h4 {[%clk 0:00:44.4]} 55.
Kg6 {[%clk 0:00:06.9]} 55... h3 {[%clk 0:00:45.1]} 56. Kh6 {[%clk 0:00:06.6]}
56... Kf3 {[%clk 0:00:42.4]} 57. Kxg5 {[%clk 0:00:07.3]} 57... Kg2 {[%clk
0:00:43.3]} 58. Kg4 {[%clk 0:00:07.9]} 58... Kxh2 {[%clk 0:00:44.2]} 59. Kh4
{[%clk 0:00:07.4]} 59... Kg1 {[%clk 0:00:44.7]} 0-1